Cogmind - Beta 16 @@@ ROGUE MODE // 2025.12.04 @ 23:43:54 Player: Ayera Result: Destroyed by S-27 Virus with Autogun Performance ------------- Evolutions (3) 1500 Regions Visited (4) 800 Robots Destroyed (58) 290 Value Destroyed (1505) 1505 Prototype IDs (2) 40 Alien Tech Used (0) 0 Bonus (0) 0 TOTAL SCORE: 4135 Bonus ------- None Cogmind --------- Core Integrity 0/700 Matter 40/300 Energy 100/100 System Corruption 0% Temperature Cool (0) Movement Core (50) Location -7/Factory Parts ------- > --- POWER (2) -------- (None) > --- PROPULSION (4) --- (None) > --- UTILITY (5) ------ Hacking Suite > --- WEAPON (2) ------- (None) > --- INVENTORY (5) ---- Improved Targeting Computer Matter Filter Actuator Array Peak State ------------ > --- POWER ------------ Deuterium Engine Deuterium Engine > --- PROPULSION ------- VSS Leg VSS Leg VSS Leg > --- UTILITY ---------- Small Storage Unit Improved Targeting Computer Target Analyzer Hardened Medium Armor Plating > --- WEAPON ----------- Autogun Assault Cannon > --- INVENTORY -------- Nuclear Core VSS Leg Advanced Weight Redist. System Actuator Array Hacking Suite Field Laser Autogun [Rating: 31] Favorites ----------- Power Light Nuclear Core Engine Deuterium Engine Power Core Light Nuclear Core Propulsion Aluminum Leg Treads Advanced Treads Leg Aluminum Leg Wheel Compact Wheel Hover Unit Hover Unit Flight Unit Flight Unit Utility Small Storage Unit Device Hardlight Generator Storage Small Storage Unit Processor Improved Targeting Computer Hackware Hacking Suite Protection Hardened Medium Armor Plating Weapon Improved Assault Rifle Energy Gun Small Laser Ballistic Gun Improved Assault Rifle Ballistic Cannon Assault Cannon Special Weapon Remote Datajack Special Melee Weapon Datajack Build | -11 -10 -9 -8 -7 ------- Run | Yrd Mat Mat Mat Fac Slots Evolved 6 | . . 2 2 2 Power 1 | . . . 1 . Propulsion 2 | . . 1 . 1 Utility 3 | . . 1 1 1 Weapon . | . . . . . Parts Attached 62 | 6 14 26 6 10 Power 11 | 1 3 4 1 2 Engine 6 | 1 2 1 1 1 Core 5 | . 1 3 . 1 Reactor . | . . . . . Propulsion 24 | 2 4 14 1 3 Treads 1 | . . . . 1 Leg 11 | . 2 8 1 . Wheel 4 | 2 2 . . . Hover 5 | . . 3 . 2 Flight 3 | . . 3 . . Utility 13 | 1 3 4 2 3 Device 4 | 1 1 . 1 1 Storage 1 | . 1 . . . Processor 2 | . . 1 1 . Hackware 1 | . . . . 1 Protection 5 | . 1 3 . 1 Artifact . | . . . . . Weapon 14 | 2 4 4 2 2 Energy Gun 3 | . 1 1 1 . Energy Cannon . | . . . . . Ballistic Gun 8 | 2 3 3 . . Ballistic Cannon 1 | . . . 1 . Launcher . | . . . . . Special Weapon 1 | . . . . 1 Impact Weapon . | . . . . . Slashing Weapon . | . . . . . Piercing Weapon . | . . . . . Special Melee Weapon 1 | . . . . 1 Unidentified Prototypes 2 | . 1 . . 1 Parts Lost 32 | . 5 7 10 10 Power 6 | . 2 . 2 2 Propulsion 12 | . 1 6 2 3 Utility 6 | . 1 . 2 3 Weapon 8 | . 1 1 4 2 Highest Loss Streak 10 | . 4 2 10 10 To Critical Strikes . | . . . . . Average Backups 1 | 1 . 1 4 3 Power . | . . . . . Propulsion . | . . . 1 . Utility . | . . . 1 2 Weapon . | . . . 1 . Tool/Special . | . . . . . Unused Backups 4 | . . 1 . 3 Power . | . . . . . Propulsion 1 | . . 1 . . Utility 3 | . . . . 3 Weapon . | . . . . . Tool/Special . | . . . . . Average Slot Usage (%) 88 | . 90 93 96 58 Engine 7 | . 11 4 17 5 Core 4 | . 1 6 . 6 Leg 12 | . 8 13 26 3 Wheel 3 | . 18 1 . . Hover 5 | . . 6 . 10 Flight 3 | . . 6 . . Device 1 | . 4 . 1 5 Storage 10 | . 13 10 9 6 Processor 7 | . . 10 15 . Protection 8 | . 3 10 8 4 Energy Gun 2 | . 9 1 . . Ballistic Gun 15 | . 17 20 10 . Peak Build Rating 31 | 8 13 23 31 31 Average Rating 17 | 3 8 16 28 25 On Entrance 10 | . 8 13 22 11 Avg Prop Armor Cover (%) . | . . . . . Naked Turns . | . . . . . Heaviest Build 39 | 10 23 28 39 32 Greatest Support 45 | 32 38 36 45 33 Greatest Overweight (x) 3 | . . 3 1 3 Average Overweight (x) . | . . . . . Largest Inventory Capacity 8 | 5 8 8 8 8 Average Capacity 7 | 5 7 7 8 7 Most Carried 7 | 5 2 7 7 5 Average Carried 1 | 1 . 1 4 3 Final Capacity 8 | 5 8 8 8 5 Final Carried 4 | 1 1 2 4 3 Class Distribution -------------------- 94% | Mutant 5% | Scavenger-Mutant Dominant Class ---------------- Mutant | -10/Materials Mutant | -9/Materials Mutant | -8/Materials Mutant | -7/Factory Resources | -11 -10 -9 -8 -7 ----------- Run | Yrd Mat Mat Mat Fac Matter Collected 1450 | 266 215 865 104 . Remotely . | . . . . . Salvage Created 1775 | 28 350 1239 158 . Parts 128 | 2 24 93 9 . Haulers Intercepted . | . . . . . Recyclers Shooed 2 | . . 1 1 . Parts Field Recycled . | . . . . . Retrieved Matter . | . . . . . Parts Self-Destructed . | . . . . . Prevented . | . . . . . Parts Restored . | . . . . . Kills | -11 -10 -9 -8 -7 ------- Run | Yrd Mat Mat Mat Fac Combat Hostiles Destroyed 48 | . 13 32 3 . Guns 47 | . 13 31 3 . AOE 1 | . . 1 . . Classes Destroyed 9 | 1 2 5 1 . Worker 2 | . . 1 1 . Builder 1 | . . 1 . . Tunneler 1 | 1 . . . . Operator 2 | . . 2 . . Watcher 4 | . . 4 . . Swarmer 18 | . 6 12 . . Grunt 20 | . 7 12 1 . Sentry 9 | . . 8 1 . Heavy 1 | . . . 1 . Best Kill Streak 4 | 1 4 4 2 . Combat Bots Only 4 | . 4 4 1 . Max Kills in Single Turn 2 | 1 1 2 1 . Gunslinging 1 | . . 1 . . Exploded 1 | . . 1 . . Melee . | . . . . . Uniques/NPCs Destroyed . | . . . . . Combat | -11 -10 -9 -8 -7 -------- Run | Yrd Mat Mat Mat Fac Hostile Shots Fired 563 | . 86 207 84 186 Missed 164 | . 22 60 11 71 Hits 399 | . 64 147 73 115 Projectile 399 | . 64 147 73 115 Critical Strikes 11 | . . 7 3 1 Damage Taken 5253 | . 665 1727 1408 1453 Core 1415 | . 130 179 404 702 Absorbed by Shields 148 | . . . . 148 Redirected to Shielding 102 | . . . . 102 Regen/Repaired (Parts) 216 | . . 216 . . Core Remaining (%) 57 | 100 48 55 26 . Volleys Fired 179 | 1 40 106 31 1 Largest 2 | 2 2 2 2 1 Hottest 86 | 40 60 73 86 5 Shots Fired 334 | 2 78 201 52 1 Gun 326 | 2 78 201 45 . Cannon 7 | . . . 7 . Launcher . | . . . . . Special 1 | . . . . 1 Kinetic 274 | 2 49 185 38 . Thermal 43 | . 29 . 14 . Explosive . | . . . . . Electromagnetic 16 | . . 16 . . Robot Hit Streak 14 | . 12 14 5 . Robot Miss Streak 6 | . 6 4 5 6 Penetration Max . | . . . . . Secondary Targets 10 | . 1 9 . . Max Gunslinging Chain 1 | . 1 1 . . Shots Hit Robots 206 | . 46 138 22 . Core Hits 88 | 1 21 55 11 . Critical Kills 2 | . 1 1 . . Critical Parts Destroyed 2 | . 1 1 . . Critical Strikes 4 | . 2 2 . . Destroy 4 | . 2 2 . . Melee Attacks . | . . . . . Impact . | . . . . . Slashing . | . . . . . Piercing . | . . . . . Sneak Attacks . | . . . . . Combat Hostiles . | . . . . . Follow-up Attacks . | . . . . . Damage Inflicted 3337 | 20 590 2245 476 6 Guns 3093 | 20 590 2134 349 . Cannons 127 | . . . 127 . Explosions 83 | . . 83 . . Melee . | . . . . . Ramming 34 | . . 28 . 6 Kinetic 2801 | 20 417 2004 360 . Thermal 372 | . 173 83 116 . Explosive . | . . . . . Electromagnetic 130 | . . 130 . . Impact . | . . . . . Slashing . | . . . . . Piercing . | . . . . . Highest Corruption 9 | . 9 3 . . Average Corruption 4 | . 5 2 . . Corruption Purged . | . . . . . Corruption Blocked . | . . . . . Effects 9 | . 6 3 . . Message Errors 2 | . 1 1 . . Matter Fused 3 | . 2 1 . . Heat Flow Errors 2 | . 2 . . . Data Loss (minor) 2 | . 1 1 . . Overload Shots . | . . . . . Overflow Damage . | . . . . . Projectiles . | . . . . . Explosions . | . . . . . Melee . | . . . . . Knockbacks . | . . . . . Impact . | . . . . . Kinetic . | . . . . . Secondary . | . . . . . Self-Inflicted Damage 41 | . . 40 . 1 Shots 1 | . . 1 . . Rammed 7 | . . 3 . 4 Targets Rammed 10 | . . 6 . 4 Kicked 3 | . . 3 . . Crushed . | . . . . . Highest Temperature 565 | . 199 267 565 . Average Temperature 97 | . 50 53 263 . Received Heat Transfer 1656 | . 261 591 594 210 Effects 26 | . . 4 22 . Shutdowns 5 | . . . 5 . Energy Bleed 1 | . . 1 . . Interference 8 | . . 3 5 . Matter Decay 3 | . . . 3 . Damage (minor) 1 | . . . 1 . Damage (major) 7 | . . . 7 . Damage (core) 1 | . . . 1 . Siege Activations . | . . . . . Martial Activations . | . . . . . Shielding Activations . | . . . . . Robots Disrupted . | . . . . . Combat Hostiles . | . . . . . Robots Corrupted . | . . . . . Combat Hostiles . | . . . . . Parts Fried . | . . . . . Impact Corruptions . | . . . . . Robots Melted . | . . . . . Combat Hostiles . | . . . . . Parts Melted 1 | . . . 1 . Heat Transferred 759 | . 400 100 259 . Parts Sabotaged . | . . . . . Parts Stolen . | . . . . . Parts Stripped . | . . . . . Power Chain Reactions 1 | . . 1 . . Alert | -11 -10 -9 -8 -7 ------- Run | Yrd Mat Mat Mat Fac Maximum Alert Level 1 | . . 1 . . Low Security (%) 94 | 100 100 89 100 100 Level 1 5 | . . 10 . . Level 2 . | . . . . . Level 3 . | . . . . . Level 4 . | . . . . . Level 5 . | . . . . . High Security . | . . . . . Max Security . | . . . . . Peak Influence 237 | 5 80 237 112 51 Initial 92 | . . 9 92 . Average 82 | . 25 133 31 9 Influence Increases 1479 | 5 300 892 117 165 Destroy 0b10 Robot/C 960 | . 260 640 60 . Destroy 0b10 Robot/NC 50 | 5 . 40 5 . Destroy Leader 238 | . 40 178 20 . Disable Machine 45 | . . 15 30 . Destroy Structure 6 | . . 4 2 . Lose Combat Pursuer 180 | . . 15 . 165 Influence Decreases 1479 | 5 278 694 337 165 Entered New Map 141 | . . 13 128 . Time Decay 1078 | 5 228 611 148 86 Lost Part 260 | . 50 70 61 79 Squads Dispatched 8 | . 1 4 2 1 Investigation 3 | . 1 1 . 1 Extermination . | . . . . . Reinforcement 4 | . . 3 1 . Assault . | . . . . . Garrison 1 | . . . 1 . Intercept . | . . . . . Searches Triggered . | . . . . . Construction Impeded . | . . . . . Haulers Reinforced . | . . . . . Active Scanning Responses . | . . . . . Cargo Convoy Interrupts . | . . . . . Stealth | -11 -10 -9 -8 -7 --------- Run | Yrd Mat Mat Mat Fac Distress Signals 4 | . 1 3 . . Communications Jammed . | . . . . . Distress Signals . | . . . . . Times Spotted 97 | . 19 50 9 19 Peak Tracking Total 12 | . 6 7 4 12 Tactical Retreats 5 | . . 1 . 4 Traps | -11 -10 -9 -8 -7 ------- Run | Yrd Mat Mat Mat Fac Traps Triggered 8 | . 5 2 . 1 Indirectly . | . . . . . Trap Hack Attempts . | . . . . . Triggered . | . . . . . Disarmed . | . . . . . Reprogrammed . | . . . . . Reused . | . . . . . Traps Extracted . | . . . . . Installed . | . . . . . Triggered . | . . . . . Machines | -11 -10 -9 -8 -7 ---------- Run | Yrd Mat Mat Mat Fac Machines Disabled 3 | . . 1 2 . Max in Single Turn 1 | . . 1 1 . Machines Repaired . | . . . . . Machines Dismantled . | . . . . . Machines Sabotaged . | . . . . . Overloaded Fab Kills . | . . . . . Hacking | -11 -10 -9 -8 -7 --------- Run | Yrd Mat Mat Mat Fac Machines Accessed 2 | . . 1 . 1 Terminals . | . . . . . Fabricators . | . . . . . Repair Stations 1 | . . 1 . . Recycling Units 1 | . . . . 1 Scanalyzers . | . . . . . Garrison Access . | . . . . . Total Hacks 9 | . . 5 . 4 Successful 6 | . . 4 . 2 Failed 3 | . . 1 . 2 Catastrophic . | . . . . . Database Lockouts . | . . . . . Manual . | . . . . . Terminals . | . . . . . Fabricators . | . . . . . Repair Stations 5 | . . 5 . . Recycling Units 4 | . . . . 4 Scanalyzers . | . . . . . Garrison Access . | . . . . . Terminal Hacks . | . . . . . Fabricator Hacks . | . . . . . Repair Station Hacks 4 | . . 4 . . Scan Component 2 | . . 2 . . Repair 2 | . . 2 . . Recycling Unit Hacks 2 | . . . . 2 Recycle Component 1 | . . . . 1 Process 1 | . . . . 1 Scanalyzer . | . . . . . Garrison Access Hacks . | . . . . . Unauthorized Hacks . | . . . . . Terminals . | . . . . . Fabricators . | . . . . . Repair Stations . | . . . . . Recycling Units . | . . . . . Scanalyzers . | . . . . . Garrison Access . | . . . . . Data Cores Recovered 1 | . . 1 . . Used . | . . . . . Hacking Detections 1 | . . . . 1 Full Trace Events 1 | . . . . 1 Feedback Events . | . . . . . Feedback Blocked . | . . . . . Robot Schematics Acquired . | . . . . . Robots Built . | . . . . . Authchips . | . . . . . Time . | . . . . . Total Robot Build Rating . | . . . . . Part Schematics Acquired . | . . . . . Parts Built . | . . . . . Authchips . | . . . . . Time . | . . . . . Total Part Build Rating . | . . . . . Part Studies Acquired . | . . . . . Parts Repaired 2 | . . 2 . . Time 58 | . . 58 . . Parts Recycled 1 | . . . . 1 Recycled Matter 18 | . . . . 18 Retrieved Matter . | . . . . . Retrieved Components . | . . . . . Parts Scanalyzed . | . . . . . Part Schematics Acquired . | . . . . . Parts Damaged . | . . . . . Bothacking | -11 -10 -9 -8 -7 ------------ Run | Yrd Mat Mat Mat Fac Used RIF Installer . | . . . . . Robots Hacked . | . . . . . Non-combat . | . . . . . Combat . | . . . . . Robot Hacks Applied . | . . . . . Relay Couplers Released . | . . . . . Fabnet Peak Effective % . | . . . . . Robots Rewired . | . . . . . Allies Hacked . | . . . . . Hacks Repelled . | . . . . . Allies | -11 -10 -9 -8 -7 -------- Run | Yrd Mat Mat Mat Fac Total Allies . | . . . . . Largest Group . | . . . . . Highest-Rated Group . | . . . . . Highest-Rated Ally . | . . . . . Total Orders . | . . . . . Ally Attacks . | . . . . . Total Damage . | . . . . . Kills . | . . . . . Allies Corrupted . | . . . . . Allies Melted . | . . . . . Intel | -11 -10 -9 -8 -7 ------- Run | Yrd Mat Mat Mat Fac Active Infowar (turns) 214 | 3 211 . . . Terrain 214 | 3 211 . . . Robot Analysis Total . | . . . . . Derelict Logs Recovered . | . . . . . Drone Launches . | . . . . . Drone Recoveries . | . . . . . Exploration | -11 -10 -9 -8 -7 ------------- Run | Yrd Mat Mat Mat Fac Turns Passed 3884 | 60 677 2110 515 522 Spaces Moved 2448 | 51 493 1155 281 468 Core 32 | 12 . . . 20 Treads 7 | . . . . 7 Legs 1067 | . 155 520 281 111 Wheels 450 | 39 338 73 . . Hover 679 | . . 349 . 330 Flight 213 | . . 213 . . Fastest Speed 50 | 50 100 90 90 50 Average Speed 121 | 88 106 131 150 101 Slowest Speed 260 | 100 120 260 180 200 Overloaded Moves . | . . . . . Propulsion Burnouts . | . . . . . Robots Hopped . | . . . . . Potential Cave-ins . | . . . . . Cave-ins Triggered . | . . . . . Exploration Rate (%) 44 | 4 83 93 27 13 Regions Visited 4 Branch Regions . Pre-discovered Areas . | . . . . . Known Exits Taken . | . . . . . Unknown Exits Taken 4 | 1 1 1 1 . Scrap Searched . | . . . . . Spaces Dug . | . . . . . Terrain Destroyed 3 | . . 2 1 . Melee . | . . . . . Projectile 1 | . . . 1 . AOE 2 | . . 2 . . Terrain Rammed . | . . . . . Walls Destroyed . | . . . . . Machines Disabled . | . . . . . Actions | -11 -10 -9 -8 -7 --------- Run | Yrd Mat Mat Mat Fac Total 3021 | 64 568 1545 326 518 Wait 213 | . . 195 . 18 Move 2444 | 50 492 1154 280 468 Hop . | . . . . . Pick Up 71 | 7 13 34 7 10 Fast Attach . | . . . . . Attach 47 | 6 9 14 6 12 Detach 4 | . . . 1 3 Swap 25 | . 7 17 1 . Drop 28 | . 7 19 . 2 Fire 179 | 1 40 106 31 1 Melee . | . . . . . Ram 4 | . . 3 . 1 Kick 3 | . . 3 . . Crush 3 | . . . . 3 Escape Stasis . | . . . . . Rewire . | . . . . . Trap . | . . . . . Miscellaneous . | . . . . . Route ------- -11/Scrapyard -10/Materials (discovered 4 exits: *Mat x3 / [*Min]) -9/Materials (discovered 4 exits: *Mat x3 / [*Min]) -8/Materials -7/Factory (discovered 2 exits: [*Fac] / [*Sto]) History --------- Turn | Location | Event 11 | -11/Scrapyard | Discovered new exit (range 16) 61 | -11/Scrapyard | Entered Materials 303 | -10/Materials | Lost 4 parts (1p1n1u1w) 313 | -10/Materials | Discovered new exit (range 15) 412 | -10/Materials | Discovered new exit (range 14) 565 | -10/Materials | Discovered new exit (range 16) 616 | -10/Materials | Core integrity fell below 50% 661 | -10/Materials | Derelicts attacked the area 717 | -10/Materials | Discovered new exit (range 8) 738 | -10/Materials | Entered another Materials area 738 | -9/Materials | Evolved 2 slots: Propulsion x1, Utility x1 807 | -9/Materials | Build established: Mutant 1300 | -9/Materials | Discovered new exit (range 7) 1356 | -9/Materials | Discovered new exit (range 12) 1413 | -9/Materials | Repaired Hrd. Light Armor Plating 1441 | -9/Materials | Repaired Sml. Storage Unit 1879 | -9/Materials | Discovered new exit (range 14) 2835 | -9/Materials | Discovered new exit (range 15) 2848 | -9/Materials | Entered another Materials area 2848 | -8/Materials | Evolved 2 slots: Power x1, Utility x1 3283 | -8/Materials | Discovered new exit (range 14) 3346 | -8/Materials | Garrison activated, responded to threat 3354 | -8/Materials | Core integrity fell below 50% 3363 | -8/Materials | Entered Factory 3363 | -7/Factory | Evolved 2 slots: Propulsion x1, Utility x1 3389 | -7/Factory | Lost 10 parts (2p2n2u4w) 3461 | -7/Factory | Discovered new exit (range 15) 3717 | -7/Factory | Discovered new exit (range 10) 3859 | -7/Factory | Core integrity fell below 50% 3873 | -7/Factory | Core integrity fell below 20% 3885 | -7/Factory | Destroyed by S-27 Virus with Autogun Last Messages --------------- 03834_ Chain reaction triggered in Imp. Deuterium Engine. 03834_ Nuclear Core destroyed. 03834_ T-07 Excavator destroyed. 03836_ K-01 Serf collects debris. 03841_ U-05 Engineer lays Concrete. 03841_ K-01 Serf collects debris. 03842_ U-05 Engineer lays Concrete. 03846_ Sml. Storage Unit destroyed. 03848_ Gravmag System destroyed. 03853_ Imp. Airjet destroyed. 03855_ Imp. Weapon Shielding destroyed. 03855_ Remote Datajack destroyed. 03856_ Hardlight Generator destroyed. 03865_ Datajack destroyed. 03867_ Acquired Adv. Treads. 03873_ A-02 Transporter destroyed. 03879_ Slammed into S-27 Virus. 03883_ Adv. Treads destroyed. 03885_ Slammed into S-27 Virus. Map ----- +----------------------------------------------------+ | ?????????????????????????????????????????????????? | | ?????????????????????????????????????????????????? | | ?????????????????????????????????????????????????? | | ?????????????????????????????????????????????????? | | ?????????????????????????????????????????????????? | | ?????????????????????????????????????????????????? | | ?????????????????????????????????????????????????? | | ?????????????????????????????????????????????????? | | ?????????????????????????????????????????????????? | | ?????????????????????????????????????????????????? | | ?????????????????????????????????????????????????? | | ?????????????????????????????????????????????????? | | ?????????????????????????????????????????????????? | | ?????????????????????????????????????????????????? | | ?????????????????????????????????????????????????? | | ?????????????????????????????????????????????????? | | ?????????????????????????????????????????????????? | | ?????????????????????????????????????????????????? | | ?????????????????????????????????????????????????? | | ?????????????????????????????????????????????????? | | ?????????????????????????????????????????????????? | | ???????????????????????????????????? ????????? | | ??????????? "????????????????????? ?????????? | | ??????????? k#####+########k ""???????????? | | ??????????????? k """????????????? | | ??????????????????????# s@ """"???????????? | | ??????????????????????# s ???????? | | ??????????????????????# s ???????? | | ??????????????????????#s#################????????? | | ??????????????????????#! #???????????????????? | | ??????????????????????#][""" #???????????????????? | | ??????????????????????#%]""" #???????????????????? | | ??????????????????????#][""" #???????????????????? | | ??????????????????????#[ #???????????????????? | | ??????????????????????# #???????????????????? | | ??????????????????????####/###???????????????????? | | ?????????????????????????# #?????????????????????? | | ?????????????????????????# #?????????????????????? | | ?????????????????????????# #?????????????????????? | | ?????????????????????????# #?????????????????????? | | ?????????????????????????# #?????????????????????? | | ?????????????????????????# #?????????????????????? | | ?????????????????????????# #?????????????????????? | | ????????????####???####### ###???????????????????? | | #############T ##### #???????????????????? | | #???????????????????? | | ??????????????? | | ????????????? | | ??????????? | | ??????????? | +----------------------------------------------------+ Best States ------------- Heat Dissipation 34 Energy Generation 25 Energy Capacity 450 Matter Stores 300 Matter Capacity 300 Sight Range 16 Terrain Scan Range 16 Terrain Scan Density 10 Additional Mass Support 9 Armor Coverage 225 Weapon Shielding 66 Evasion (%) 57 Targeting Accuracy 6 Target Analysis 5 Recoil Reduction 1 Offensive Hacking 10 Item Schematics ----------------- None Robot Schematics ------------------ None Fabricated ------------ Nothing Repaired ---------- Hrd. Light Armor Plating | 32% | -9/Materials Sml. Storage Unit | 37% | -9/Materials Studied --------- None Alien Tech Used ----------------- None Achievements -------------- Sprinter Challenges ------------ None Game ------ Seed SlugVisualShredder Manual? 0 Play Time 00:39:01 Cumulative 29.2 hours Start 2025.12.04 @ 23:04:08 End 2025.12.04 @ 23:43:54 Sessions 1 Manual Loads 0 Difficulty Rogue Special Mode None Game No. 54 Rogue 54 Adventurer 0 Explorer 0 Win Type - Total 0 Types 0/0/0/0/0/0/0/0/0/0 Lore% 10 Gallery% 25 Achievement% 16 Wizard Run 0 Options --------- Layout 1 ASCII 0 Keyboard 0 Movement Numpad Keybinds 0 Fullscreen 1 Font 32/SmallcapsGlow Map View 50x40 Zoom Use 0% Tactical HUD 1 Map Filters NONE Filters NONE Steam 1 RUN: 8e558775-cf2e-4933-a83c-469c830696c4